bitfinex/quotes_SOLUSD_20251120
["timestamp","ask_amount","ask_price","bid_price","bid_amount"]
[1763607625252,8.63464097,143.79,143.76,10.76866919]
[1763607626039,8.63464097,143.79,143.73,9.78882769]
[1763607626040,11.42866919,143.78,143.73,9.78882769]
[1763607626240,11.42866919,143.78,143.73,20.55749688]
[1763607626445,0.66,143.77,143.73,20.55749688]
[1763607626750,6.95652173,143.75,143.71,10.76866919]
[1763607627056,6.95652173,143.75,143.68,56.9599036]
[1763607627057,10.76866919,143.74,143.69,9.78882769]
[1763607627258,1.68,143.73,143.7,10.76866919]
[1763607627670,2.4,143.73,143.7,10.76866919]
[1763607628380,0.72,143.78,143.72,10.76866919]
[1763607628563,1.68,143.77,143.74,10.76866919]
[1763607628879,1.68,143.76,143.73,60.76866919]
[1763607629389,1.68,143.76,143.74,10.76866919]
[1763607630080,8.63606531,143.76,143.73,60.76866919]
[1763607630274,11.48866919,143.75,143.69,50.0]
[1763607630449,11.48866919,143.75,143.69,67.72808113]
[1763607630651,26.02615991,143.76,143.72,10.76866919]
[1763607630652,9.35606531,143.76,143.72,10.76866919]
[1763607630855,7.67658536,143.75,143.71,10.76866919]
[1763607631060,6.95658536,143.75,143.71,10.76866919]
[1763607631257,1.68,143.74,143.71,60.76866919]
[1763607631455,10.76866919,143.77,143.72,10.76866919]
[1763607631456,1.68,143.73,143.72,10.76866919]
[1763607631760,7.67515544,143.78,143.73,59.78882769]
[1763607631964,1.68,143.77,143.74,10.76866919]
[1763607632655,2.4,143.77,143.73,59.78882769]
[1763607633064,9.35559753,143.77,143.73,59.78882769]
[1763607633272,9.35559753,143.77,143.73,70.55749688]
[1763607633558,9.35559753,143.77,143.73,77.51498267]
[1763607634289,9.35559753,143.77,143.73,70.55749688]
[1763607634475,1.68,143.77,143.73,77.51493787]
[1763607634666,1.68,143.77,143.74,10.76866919]
[1763607635182,2.4,143.77,143.73,77.51493787]
[1763607635491,28.88962919,143.82,143.76,10.76866919]
[1763607635652,1.68,143.81,143.77,10.76866919]
[1763607635853,2.4,143.81,143.77,10.76866919]
[1763607636053,0.72,143.8,143.76,20.55749688]
[1763607637073,100.0,143.77,143.76,27.51353472]
[1763607637294,101.68,143.77,143.76,27.51353472]
[1763607637574,109.355554,143.77,143.73,50.0]
[1763607637772,101.68,143.77,143.73,61.46866919]
[1763607638110,102.4,143.77,143.74,10.76866919]
[1763607639075,101.68,143.77,143.74,10.76866919]
[1763607640087,101.68,143.77,143.73,67.72610226]
[1763607640413,109.35566308,143.77,143.73,67.72610226]
[1763607641171,101.68,143.77,143.73,67.72610226]
[1763607641371,100.0,143.77,143.74,10.76866919]
[1763607641605,1.68,143.76,143.74,10.76866919]
[1763607642709,2.4,143.76,143.73,56.95743307]
[1763607642893,2.4,143.76,143.73,67.72610226]
[1763607643409,2.4,143.76,143.73,56.95743307]
[1763607643591,2.4,143.76,143.73,67.72610226]
[1763607644804,2.4,143.76,143.73,63.93617735]
[1763607646498,1.68,143.76,143.73,64.63617735]
[1763607646903,2.4,143.76,143.73,63.93617735]
[1763607649491,1.68,143.76,143.75,6.97874428]
[1763607649684,100.0,143.77,143.76,59.78882769]
[1763607649883,100.0,143.77,143.76,66.76757197]
[1763607650087,100.0,143.77,143.76,50.0]
[1763607650288,100.0,143.77,143.75,6.97874428]
[1763607650807,100.0,143.77,143.76,35.59853197]
[1763607651013,100.0,143.77,143.76,85.59853197]
[1763607651417,1.68,143.79,143.76,6.97874428]
[1763607651617,2.39,143.79,143.77,56.95523257]
[1763607652711,0.71,143.78,143.76,6.97874428]
[1763607652913,2.39,143.79,143.77,6.97874428]
[1763607653215,2.39,143.79,143.78,6.97874428]
[1763607653637,2.39,143.79,143.78,13.93381452]
[1763607653804,2.39,143.79,143.71,0.6958458]
[1763607653992,18.12096,143.84,143.71,0.6958458]
[1763607653993,0.71,143.8,143.78,6.97874428]
[1763607654311,1.68,143.79,143.75,50.0]
[1763607654513,1.68,143.79,143.75,50.71]
[1763607655105,1.68,143.79,143.76,6.95603784]
[1763607655300,6.9508622,143.87,143.79,59.78882769]
[1763607655504,0.71,143.86,143.84,6.97874428]
[1763607655808,1.68,143.85,143.83,6.97874428]
[1763607656009,1.68,143.85,143.84,6.97874428]
[1763607656406,1.68,143.85,143.84,17.47757197]
[1763607657096,1.68,143.85,143.84,24.42974104]
[1763607657297,1.68,143.85,143.84,16.74099676]
[1763607657626,1.68,143.85,143.84,24.42974104]
[1763607657811,1.68,143.88,143.85,59.78882769]
[1763607658014,1.68,143.88,143.87,6.97874428]
[1763607658504,1.65913479,143.88,143.87,6.97874428]
[1763607659313,1.65913479,143.88,143.87,13.92946367]
[1763607659509,1.65913479,143.88,143.87,6.97874428]
[1763607659730,2.36913479,143.88,143.87,6.97874428]
[1763607659936,2.36913479,143.88,143.86,6.97874428]
[1763607660118,0.71,143.87,143.84,6.95216907]
[1763607660306,0.71,143.87,143.86,6.97874428]
[1763607660703,0.71,143.87,143.85,6.97874428]
[1763607661028,0.71,143.87,143.86,6.97874428]
[1763607663328,0.71,143.87,143.85,6.97874428]
[1763607663825,0.71,143.87,143.86,6.97874428]
[1763607666711,1.68,143.87,143.86,6.97874428]
[1763607669012,2.39,143.87,143.86,6.97874428]
[1763607669220,2.39,143.87,143.85,6.97874428]
[1763607669416,0.71,143.86,143.85,6.97874428]
[1763607669915,8.63071939,143.87,143.85,6.97874428]
[1763607670114,0.71,143.86,143.85,6.97874428]
[1763607670626,1.68,143.87,143.85,6.97874428]
[1763607670812,1.68,143.87,143.86,6.97874428]
[1763607671127,1.68,143.87,143.86,13.92994683]
[1763607671431,1.68,143.87,143.86,6.97874428]
[1763607674044,1.68,143.87,143.86,13.92994683]
[1763607674478,17.36886182,143.94,143.86,23.71877452]
[1763607674638,0.71,143.92,143.87,60.49882769]
[1763607674833,1.68,143.93,143.91,6.97874428]
[1763607675038,1.68,143.93,143.89,50.0]
[1763607675346,2.39,143.93,143.89,50.71]
[1763607675545,2.39,143.93,143.89,57.65933131]
[1763607675966,2.39,143.93,143.92,6.97874428]
[1763607676438,1.68,143.93,143.92,6.97874428]
[1763607676766,0.1,143.95,143.93,59.78882769]
[1763607676969,2.39,143.94,143.89,68.83096]
[1763607677169,2.39,143.94,143.9,9.78882769]
[1763607677666,1.68,143.94,143.91,50.71]
[1763607677891,1.68,143.94,143.92,6.94830461]
[1763607678169,2.39,143.94,143.93,6.97874428]
[1763607680863,1.68,143.94,143.93,6.97874428]
[1763607681764,9.30733916,143.94,143.89,68.12096]
[1763607681971,0.68,143.93,143.9,6.97874428]
[1763607682747,7.65874428,143.93,143.88,6.97874428]
[1763607683074,7.65874428,143.93,143.89,6.97874428]
[1763607683075,0.68,143.93,143.89,6.97874428]
[1763607683372,0.68,143.92,143.89,6.97874428]
[1763607683545,1.68,143.91,143.85,6.95155656]
[1763607683867,6.94927032,143.9,143.88,6.97874428]
[1763607684069,7.62927032,143.9,143.88,6.97874428]
[1763607684368,0.68,143.89,143.88,6.97874428]
[1763607684774,0.68,143.89,143.85,6.97874428]
[1763607684985,0.68,143.89,143.81,56.95347183]
[1763607684986,1.68,143.88,143.81,56.95347183]
[1763607685159,1.68,143.88,143.84,6.97874428]
[1763607685479,0.68,143.87,143.84,6.97874428]
[1763607685867,6.95120255,143.86,143.84,6.97874428]
[1763607686056,1.68,143.85,143.84,6.97874428]
[1763607686751,2.39,143.85,143.83,6.97874428]
[1763607686951,0.71,143.84,143.83,6.97874428]
[1763607687359,1.68,143.85,143.83,6.97874428]
[1763607687545,2.39,143.85,143.84,6.97874428]
[1763607687757,1.68,143.85,143.84,6.97874428]
[1763607688157,9.34174396,143.85,143.81,56.95352415]
[1763607688371,9.34174396,143.85,143.84,6.97874428]
[1763607688372,1.68,143.85,143.84,6.97874428]
[1763607688544,8.63168578,143.85,143.84,6.97874428]
[1763607688973,1.68,143.85,143.84,6.97874428]
[1763607690571,0.71,143.89,143.84,14.63079822]
[1763607690779,2.39,143.88,143.87,6.97874428]
[1763607691751,9.3402363,143.88,143.87,6.97874428]
[1763607692166,1.68,143.88,143.87,66.76757197]
[1763607692678,1.68,143.89,143.87,66.76757197]
[1763607692894,1.68,143.89,143.88,6.97874428]
[1763607693181,1.68,143.89,143.88,17.46757197]
[1763607693484,1.68,143.9,143.89,59.78882769]
[1763607693778,1.68,143.9,143.89,74.41732525]
[1763607693978,1.68,143.9,143.89,67.43858097]
[1763607694157,1.68,143.9,143.89,74.41732525]
[1763607695858,1.68,143.9,143.89,6.97874428]
[1763607699086,9.33927032,143.9,143.89,6.97874428]
[1763607699257,9.33927032,143.9,143.86,6.97874428]
[1763607699463,0.71,143.89,143.85,6.97874428]
[1763607700267,24.32582707,143.88,143.85,6.97874428]
[1763607700792,2.39,143.87,143.85,6.97874428]
[1763607701459,0.71,143.86,143.85,6.97874428]
[1763607702179,7.66120255,143.86,143.85,6.97874428]
[1763607703278,0.71,143.86,143.85,6.97874428]
[1763607706682,1.68,143.87,143.85,6.97874428]
[1763607706882,1.68,143.87,143.86,10.78140124]
[1763607708485,2.39,143.87,143.86,10.78140124]
[1763607709086,1.68,143.87,143.86,10.78140124]
[1763607711491,7.66990399,143.89,143.86,10.78140124]
[1763607711675,1.68,143.87,143.85,6.95157259]
[1763607711892,1.68,143.87,143.86,59.78882769]
[1763607712410,1.68,143.87,143.86,66.74003024]
[1763607712595,1.68,143.87,143.86,67.41003024]
[1763607712908,1.68,143.87,143.86,96.31239148]
[1763607713096,1.68,143.89,143.88,59.78882769]
[1763607713297,1.68,143.89,143.88,70.57022893]
[1763607713498,1.68,143.89,143.88,71.24022893]
[1763607714221,1.68,143.92,143.91,6.94878743]
[1763607714394,1.68,143.92,143.91,17.73018867]
[1763607716009,1.68,143.92,143.91,10.78140124]
[1763607718506,1.68,143.92,143.91,17.73018867]
[1763607718924,1.68,143.92,143.91,10.78140124]
[1763607720923,2.4,143.92,143.91,10.78140124]
[1763607722026,9.34838582,143.92,143.91,10.78140124]
[1763607722229,1.68,143.92,143.91,10.78140124]
[1763607722607,0.72,143.94,143.91,67.73000714]
[1763607722806,1.68,143.93,143.91,50.0]
[1763607723031,2.4,143.93,143.91,50.0]
[1763607723831,2.4,143.93,143.9,9.78882769]
[1763607724033,2.4,143.93,143.92,10.78140124]
[1763607725638,9.34782185,143.93,143.92,10.78140124]
[1763607726629,18.22096,143.95,143.92,10.78140124]
[1763607726937,1.68,143.94,143.92,57.61824659]
[1763607727139,0.1,143.95,143.92,57.61824659]
[1763607727339,1.68,143.94,143.92,57.61824659]
[1763607728245,1.68,143.94,143.93,10.78140124]
[1763607728548,0.1,143.95,143.94,59.78882769]
[1763607728714,0.1,143.95,143.94,71.24022893]
[1763607728916,0.1,143.95,143.94,64.51639927]
[1763607729234,0.1,143.95,143.94,63.84639927]
[1763607729435,1.78,143.95,143.94,4.05757158]
[1763607731636,2.5,143.95,143.94,4.05757158]
[1763607731934,9.44685654,143.95,143.93,4.05757158]
[1763607732142,0.72,143.94,143.92,4.05757158]
[1763607732635,8.62782185,143.93,143.92,4.05757158]
[1763607733019,9.34782185,143.93,143.92,4.05757158]
[1763607733221,1.68,143.93,143.92,58.78514316]
[1763607733437,7.04685852,143.95,143.92,68.57397085]
[1763607733655,1.68,143.94,143.93,9.78882769]
[1763607733834,1.68,143.94,143.93,13.84639927]
[1763607734038,7.04685852,143.95,143.93,13.84639927]
[1763607734244,7.04685852,143.95,143.94,4.05757158]
[1763607734450,8.72685852,143.95,143.94,4.05757158]
[1763607735353,9.44685852,143.95,143.94,4.05757158]
[1763607735662,9.44685852,143.95,143.92,50.0]
[1763607735663,26.81399988,143.95,143.92,4.05757158]
[1763607735835,0.72,143.94,143.91,4.05757158]
[1763607736455,1.68,143.93,143.88,50.0]
[1763607736653,24.31906614,143.92,143.9,4.05757158]
[1763607736839,0.72,143.91,143.88,50.0]
[1763607737153,0.72,143.91,143.9,4.05757158]
[1763607737330,2.4,143.91,143.9,4.05757158]
[1763607737939,2.4,143.91,143.88,50.0]
[1763607738250,2.4,143.91,143.9,4.05757158]
[1763607738551,6.94927032,143.9,143.89,4.05757158]
[1763607741441,6.94927032,143.9,143.88,54.05757158]
[1763607742340,7.60927032,143.9,143.88,50.0]
[1763607742936,6.94927032,143.9,143.88,50.0]
[1763607743133,6.39757158,143.89,143.85,50.0]
[1763607743642,6.39757158,143.89,143.83,50.0]
[1763607743643,4.05757158,143.87,143.83,50.0]
[1763607743849,1.68,143.86,143.83,50.0]
[1763607744057,8.63168578,143.85,143.83,50.0]
[1763607744241,4.05757158,143.84,143.8,9.78882769]
[1763607744434,4.05757158,143.81,143.73,50.89]
[1763607744759,4.05757158,143.74,143.73,0.2]
[1763607744967,5.73757158,143.74,143.73,0.2]
[1763607745273,6.39757158,143.74,143.73,1e-08]
[1763607745853,6.39757158,143.74,143.7,1e-08]
[1763607746050,8.11514316,143.71,143.7,1e-08]
[1763607746266,9.79514316,143.71,143.7,1e-08]
[1763607746561,10.50514316,143.71,143.7,1e-08]
[1763607746768,6.95797383,143.72,143.7,1e-08]
[1763607746941,12.49336716,143.71,143.7,1e-08]
[1763607747337,13.20336716,143.71,143.7,1e-08]
[1763607747944,17.77182516,143.71,143.7,1e-08]
[1763607748153,8.638458,143.71,143.7,1e-08]
[1763607748667,19.45182516,143.71,143.7,1e-08]
[1763607749368,8.638458,143.71,143.7,1e-08]
[1763607759166,9.348458,143.71,143.7,1e-08]
[1763607759870,8.638458,143.71,143.7,1e-08]
[1763607761452,6.958458,143.71,143.7,11.48336717]
[1763607761662,8.638458,143.71,143.7,10.81336717]
[1763607761978,8.638458,143.71,143.7,1e-08]
[1763607762269,20.16182516,143.71,143.7,1e-08]
[1763607762847,8.638458,143.71,143.7,1e-08]
[1763607765761,20.16182516,143.71,143.7,1e-08]
[1763607766769,26.1269457,143.71,143.7,1e-08]
[1763607768584,6.98966001,143.65,143.64,0.0227]
[1763607768894,8.66966001,143.65,143.64,0.0227]
[1763607769061,34.46198443,143.65,143.64,0.0227]
[1763607770083,26.76232442,143.65,143.64,0.0227]
[1763607771387,34.47198443,143.65,143.64,0.0227]
[1763607772790,26.76232442,143.65,143.64,0.7327]
[1763607773478,26.76232442,143.65,143.64,0.0227]
[1763607774482,8.64136442,143.65,143.64,0.0227]
[1763607775078,8.64136442,143.65,143.64,0.7327]
[1763607775595,8.64136442,143.65,143.64,0.0227]
[1763607775972,8.64136442,143.65,143.64,7.72236001]
[1763607776773,8.64136442,143.65,143.64,0.7327]
[1763607777598,8.64136442,143.65,143.64,0.0227]
[1763607778403,8.60655639,143.65,143.64,0.0227]
[1763607778702,8.60655639,143.65,143.64,0.7327]
[1763607780799,17.4020304,143.67,143.64,0.7327]
[1763607780974,8.64104278,143.66,143.64,7.72236001]
[1763607781169,17.39653774,143.71,143.65,16.7784877]
[1763607781383,17.39653774,143.71,143.66,6.98966001]
[1763607781384,1.68,143.7,143.66,6.98966001]
[1763607781589,1.68,143.7,143.66,7.69966001]
[1763607781785,1.68,143.7,143.67,0.71]
[1763607781990,6.95942654,143.69,143.67,0.71]
[1763607782996,6.95894224,143.7,143.67,0.71]
[1763607783298,1.68,143.68,143.67,0.71]
[1763607784279,8.63991091,143.68,143.67,0.71]
[1763607784475,18.12096,143.73,143.67,17.4884877]
[1763607784681,1.68,143.72,143.69,6.98966001]
[1763607784992,1.68,143.71,143.68,10.49882769]
[1763607785309,1.68,143.71,143.69,0.71]
[1763607786385,8.63868644,143.71,143.69,7.69966001]
[1763607786702,8.63868644,143.71,143.69,0.71]
[1763607787412,1.68,143.71,143.69,7.69966001]
[1763607787610,1.68,143.71,143.7,6.98966001]
[1763607787805,1.68,143.71,143.7,7.69966001]
[1763607788320,8.638458,143.71,143.7,0.71]
[1763607788526,8.638458,143.71,143.68,7.69966001]
[1763607788814,8.638458,143.71,143.67,3.31714263]
[1763607789025,8.638458,143.71,143.67,0.71]
[1763607789026,2.60714263,143.7,143.67,0.71]
[1763607789693,1.68,143.69,143.67,0.71]
[1763607789994,1.68,143.68,143.67,0.71]
[1763607790215,8.63991091,143.68,143.67,0.71]
[1763607791409,38.12237662,143.73,143.67,3.31714263]
[1763607791611,1.68,143.72,143.69,2.60714263]
[1763607792117,1.68,143.72,143.7,0.71]
[1763607792917,1.68,143.72,143.7,3.31714263]
[1763607792918,8.63797383,143.72,143.7,3.31714263]
[1763607793333,8.63797383,143.72,143.7,0.71]
[1763607798635,34.77764327,143.78,143.71,16.77098581]
[1763607798823,6.95507024,143.78,143.74,6.98215812]
[1763607799018,6.95507024,143.78,143.75,0.71]
[1763607799227,0.72,143.84,143.77,6.98215812]
[1763607799418,6.98215812,143.82,143.78,0.71]
[1763607799623,31.31849166,143.82,143.78,0.71]
[1763607799835,24.33633354,143.82,143.78,7.69215812]
[1763607800151,1.68,143.81,143.78,0.71]
[1763607801442,1.68,143.81,143.78,7.69215812]
[1763607801738,8.63378703,143.81,143.78,7.69215812]
[1763607801934,8.63378703,143.81,143.79,0.7]
[1763607802926,32.99999354,143.81,143.77,0.7]
[1763607803122,32.99999354,143.81,143.75,50.0]
[1763607803123,6.98215812,143.8,143.75,6.98215812]
[1763607803326,32.99999354,143.81,143.76,7.68215812]
[1763607803730,33.65999354,143.81,143.77,0.7]
[1763607804141,26.01783542,143.81,143.77,7.68215812]
[1763607804517,26.01783542,143.81,143.77,0.7]
[1763607805734,8.63378703,143.81,143.77,0.7]
[1763607806544,8.63378703,143.81,143.77,7.68215812]
[1763607806745,8.63378703,143.81,143.77,0.7]
[1763607807145,26.01783542,143.81,143.77,0.7]
[1763607808022,32.99999354,143.81,143.77,0.7]
[1763607808350,15.61594515,143.81,143.77,0.7]
[1763607808521,8.63378703,143.81,143.77,0.7]
[1763607810323,15.61594515,143.81,143.77,0.7]
[1763607811328,18.12096,143.78,143.69,6.98215812]
[1763607811537,6.98215812,143.76,143.71,0.66]
[1763607811748,1.68,143.75,143.71,0.66]
[1763607811927,6.98215812,143.74,143.71,0.66]
[1763607812239,6.98215812,143.74,143.72,9.78882769]
[1763607812240,1.68,143.74,143.72,9.78882769]
[1763607812434,8.66215812,143.74,143.73,0.66]
[1763607812634,1.68,143.74,143.73,0.66]
[1763607813640,15.61916382,143.74,143.73,0.66]
[1763607813826,15.61916382,143.74,143.71,10.44882769]
[1763607814230,6.98215812,143.73,143.68,68.12096]
[1763607814451,6.98215812,143.7,143.68,0.66]
[1763607814626,8.66215812,143.69,143.66,0.66]
[1763607814825,8.66215812,143.68,143.66,0.66]
[1763607815045,8.66215812,143.67,143.64,10.47152769]
[1763607815249,8.66215812,143.67,143.64,0.6827]
[1763607815558,6.98215812,143.66,143.65,0.66]
[1763607815857,6.98215812,143.66,143.64,0.6827]
[1763607816048,8.66215812,143.67,143.64,0.6827]
[1763607816755,6.98215812,143.66,143.64,0.6827]
[1763607817140,13.94304812,143.66,143.64,0.6827]
[1763607817949,8.66215812,143.67,143.64,0.6827]
[1763607818143,1.68,143.67,143.64,7.64441788]
[1763607818556,8.66215812,143.67,143.65,0.66]
[1763607818856,10.43540908,143.78,143.65,0.66]
[1763607819157,2.60885227,143.71,143.67,9.78882769]
[1763607819455,1.68,143.7,143.67,9.78882769]
[1763607819648,1.68,143.7,143.68,0.66]
[1763607820233,17.39201725,143.75,143.68,0.66]
[1763607820432,2.60885227,143.73,143.68,0.66]
[1763607820857,1.68,143.74,143.69,9.78882769]
[1763607821074,1.68,143.74,143.71,9.78882769]
[1763607821266,1.68,143.74,143.73,2.60885227]
[1763607821642,1.68,143.74,143.73,3.26885227]
[1763607822135,1.68,143.76,143.73,3.26885227]
[1763607822855,1.68,143.76,143.74,6.97745774]
[1763607823058,1.68,143.76,143.75,6.97745774]
[1763607823260,1.68,143.76,143.75,7.63745774]
[1763607824358,1.68,143.76,143.75,17.42628543]
[1763607824952,1.68,143.76,143.75,7.63745774]
[1763607825554,1.68,143.76,143.75,0.66]
[1763607825854,1.68,143.76,143.74,6.97745774]
[1763607826063,1.68,143.76,143.74,7.63745774]
[1763607826468,1.68,143.76,143.74,6.97745774]
[1763607826667,1.68,143.76,143.75,7.63745774]
[1763607826881,1.68,143.76,143.75,11.45760861]
[1763607829461,1.68,143.76,143.73,9.78882769]
[1763607829669,9.31622848,143.76,143.72,0.66]
[1763607829991,9.31622848,143.76,143.73,0.66]
[1763607829992,8.63622848,143.76,143.73,0.66]
[1763607830159,8.63622848,143.76,143.73,10.79760861]
[1763607830490,1.68,143.76,143.74,11.49760861]
[1763607831055,1.68,143.76,143.75,10.79760861]
[1763607831665,1.68,143.76,143.74,0.7]
[1763607831976,1.68,143.76,143.75,10.79760861]
[1763607833581,1.68,143.76,143.74,11.49760861]
[1763607833882,10.79760861,143.84,143.76,9.78882769]
[1763607834056,9.29265243,143.83,143.79,10.79760861]
[1763607834263,8.63265243,143.83,143.8,10.79760861]
[1763607834681,1.68,143.83,143.82,10.79760861]
[1763607835265,1.68,143.83,143.81,10.79760861]
[1763607835883,1.68,143.83,143.82,10.79760861]
[1763607836184,8.63274934,143.83,143.81,0.7]
[1763607836381,8.63274934,143.83,143.81,10.79760861]
[1763607837570,8.63274934,143.83,143.79,7.65457448]
[1763607837880,8.63274934,143.83,143.81,10.79760861]
[1763607838057,8.63274934,143.83,143.8,0.7]
[1763607838262,8.63274934,143.83,143.81,10.79760861]
[1763607839171,1.68,143.83,143.82,11.49760861]
[1763607840175,1.68,143.83,143.82,0.7]
[1763607840387,1.68,143.83,143.82,10.79760861]
[1763607840683,8.63265243,143.83,143.81,10.79760861]
[1763607841386,1.68,143.83,143.82,10.79760861]
[1763607841572,1.68,143.83,143.81,10.79760861]
[1763607841770,1.68,143.83,143.82,11.49760861]
[1763607843384,0.1,143.85,143.82,21.2864363]
[1763607843569,1.78,143.85,143.84,10.79760861]
[1763607843896,1.78,143.85,143.84,11.49760861]
[1763607844278,1.78,143.85,143.84,0.7]
[1763607844890,1.78,143.85,143.84,4.76492718]
[1763607845289,6.94733916,143.94,143.85,60.48882769]
[1763607845482,1.68,143.93,143.9,4.06492718]
[1763607845676,2.34,143.93,143.9,4.06492718]
[1763607846482,8.62788123,143.93,143.9,4.06492718]
[1763607846908,0.66,143.92,143.88,9.78882769]
[1763607847081,4.06492718,143.91,143.84,18.82096]
[1763607847271,1.68,143.9,143.88,4.06492718]
[1763607847668,1.68,143.9,143.89,4.06492718]
[1763607849465,1.68,143.9,143.89,4.76492718]
[1763607849670,1.68,143.9,143.88,4.06492718]
[1763607850479,1.68,143.9,143.88,4.76492718]
[1763607851575,1.68,143.9,143.88,4.06492718]
[1763607851792,8.62930965,143.9,143.88,4.06492718]
[1763607852580,1.68,143.9,143.89,4.76492718]
[1763607852995,1.68,143.9,143.89,4.06492718]
[1763607853396,1.68,143.9,143.87,9.78882769]
[1763607853592,1.68,143.9,143.88,4.06492718]
[1763607854588,8.62927046,143.9,143.87,4.76492718]
[1763607856110,4.72492718,143.89,143.83,4.06492718]
[1763607856407,4.72492718,143.89,143.83,4.76492718]
[1763607856408,4.06492718,143.88,143.83,4.76492718]
[1763607856610,1.68,143.87,143.84,4.06492718]
[1763607856911,1.68,143.86,143.84,4.76492718]
[1763607857904,1.68,143.86,143.85,4.76492718]
[1763607858093,1.68,143.89,143.85,4.76492718]
[1763607858295,1.68,143.89,143.87,4.06492718]
[1763607858678,1.68,143.89,143.87,4.76492718]
[1763607859189,8.62979097,143.89,143.87,4.76492718]
[1763607859723,1.68,143.89,143.88,0.7]
[1763607859889,1.68,143.89,143.88,4.76492718]
[1763607861808,1.68,143.89,143.88,21.50399117]
[1763607862596,1.68,143.89,143.88,14.55375487]
[1763607863292,8.62975328,143.89,143.86,50.7]
[1763607863597,1.68,143.89,143.87,14.55375487]
[1763607864606,1.68,143.89,143.88,4.76492718]
[1763607865904,1.68,143.89,143.88,4.06492718]
[1763607866110,1.68,143.89,143.88,4.76492718]
[1763607866718,1.68,143.89,143.88,4.75492718]
[1763607869710,1.68,143.89,143.88,0.69]
[1763607869915,1.68,143.89,143.88,4.75492718]
[1763607871531,1.68,143.89,143.87,13.85375487]
[1763607871996,1.68,143.89,143.87,14.54375487]
[1763607872605,1.68,143.89,143.88,4.06492718]
[1763607873003,25.83793929,143.95,143.89,9.78882769]
[1763607873204,0.1,143.95,143.94,4.06492718]
[1763607873398,0.1,143.95,143.94,13.85375487]
[1763607873600,0.1,143.95,143.94,14.54375487]
[1763607873996,0.1,143.96,143.95,59.78882769]
[1763607874196,0.1,143.96,143.95,82.66471487]
[1763607874399,0.1,143.96,143.95,84.34471487]
[1763607875118,0.1,143.96,143.95,91.29157141]
[1763607875816,0.1,143.96,143.95,89.61157141]
[1763607876618,7.04284518,144.04,143.98,27.90978769]
[1763607876815,0.1,144.04,144.02,4.06492718]
[1763607877217,0.1,144.04,144.02,4.75492718]
[1763607877720,0.1,144.04,144.03,4.06492718]
[1763607877920,0.1,144.04,144.03,4.75492718]
[1763607878506,0.1,144.04,144.02,50.0]
[1763607878710,0.1,144.04,144.03,13.85375487]
[1763607879233,0.1,144.04,144.03,14.54375487]
[1763607879423,0.1,144.04,144.03,21.48675285]
[1763607880515,0.1,144.04,144.03,14.54375487]
[1763607880922,0.1,144.04,144.03,21.48675285]
[1763607882540,0.1,144.04,144.03,14.54375487]
[1763607882718,0.1,144.04,144.03,9.78882769]
[1763607882922,0.1,144.04,144.03,14.54375487]
[1763607883227,0.1,144.04,144.03,13.85375487]
[1763607883610,0.1,144.04,144.03,14.54375487]
[1763607884135,0.1,144.04,144.03,21.48675285]
[1763607884732,0.1,144.04,144.03,20.79675285]
[1763607885513,0.1,144.04,144.03,21.48675285]
[1763607885726,0.1,144.04,144.03,20.79675285]
[1763607886416,0.1,144.04,144.03,21.48675285]
[1763607886811,0.1,144.04,144.03,20.01595668]
[1763607887607,0.1,144.04,144.03,2.59413101]
[1763607887816,0.1,144.04,144.03,3.28413101]
[1763607889134,0.1,144.04,144.03,13.0729587]
[1763607889731,0.1,144.04,144.03,20.01595668]
[1763607892421,0.1,144.04,144.03,9.78882769]
[1763607892729,0.1,144.04,144.02,2.59413101]
[1763607893740,0.1,144.04,144.03,2.59413101]
[1763607897728,0.1,144.04,144.01,16.73270228]